Cogmind - Beta 10.2 @@@ ROGUE MODE // 2021.04.02 @ 15:23:17 Player: Cipherpunk Result: Destroyed by G-47 Trooper with Particle Gun Performance ------------- Evolutions (3) 1500 Regions Visited (7) 1400 Robots Destroyed (83) 415 Value Destroyed (3238) 3238 Prototype IDs (3) 60 Alien Tech Used (0) 0 Bonus (1240) 1240 TOTAL SCORE: 7853 Bonus ------- High Alert Combat Kills 285 Follower Combat Kills 55 Entered Garrisons 400 Used RIF Installer 500 Cogmind --------- Core Integrity 0/700 Matter 293/300 Energy 100/100 System Corruption 0% Temperature Cool (18) Movement Core (1100) Ox21 Location -7/Garrison Parts ------- > --- POWER (1) -------- (None) > --- PROPULSION (3) --- (None) > --- UTILITY (6) ------ Large Storage Unit Large Storage Unit High-capacity Storage Unit Relay Coupler [Duelist] (31) > --- WEAPON (3) ------- (None) > --- INVENTORY (24) --- Micro Nuclear Core Light Angular Momentum Engine Improved Heat Sink Advanced Sensor Array Improved Medium Armor Plating Improved Medium Armor Plating Relay Coupler [NC] (31) Relay Coupler [NC] (29) Relay Coupler [ARC] (9) Relay Coupler [Grunt] (23) Relay Coupler [Grunt] (21) Relay Coupler [Sentry] (18) Relay Coupler [Specialist] (19) Relay Coupler [Behemoth] (8) System Backup Module Shock Rifle Pulse Rifle Pulse Rifle Heavy Ion Cannon Gauss Cannon Katana Peak State ------------ > --- POWER ------------ Light Nuclear Core > --- PROPULSION ------- Aluminum Leg Improved Carbon-fiber Leg Improved Titanium Leg > --- UTILITY ---------- Large Storage Unit Large Storage Unit High-capacity Storage Unit Improved Medium Armor Plating Relay Coupler [Grunt] Relay Coupler [Sentry] > --- WEAPON ----------- Autogun Flak Gun Remote Datajack > --- INVENTORY -------- Micro Nuclear Core Light Angular Momentum Engine Improved Heat Sink Advanced Sensor Array Improved Medium Armor Plating Relay Coupler [NC] Relay Coupler [NC] Relay Coupler [ARC] Relay Coupler [Grunt] Relay Coupler [Grunt] Relay Coupler [Duelist] Relay Coupler [Sentry] Relay Coupler [Specialist] Relay Coupler [Behemoth] System Backup Module Shock Rifle Pulse Rifle Pulse Rifle Heavy Ion Cannon Gauss Cannon Shock Bomb Launcher Katana [Rating: 43] Favorites ----------- Power Light Nuclear Core Engine Light Deuterium Engine Power Core Light Nuclear Core Propulsion Improved Aluminum Leg Leg Improved Aluminum Leg Wheel Wheel Utility Large Storage Unit Device Improved Heat Sink Storage Large Storage Unit Processor Improved Signal Interpreter Hackware Relay Coupler [Sentry] Protection Improved Light Armor Plating Weapon Autogun Energy Gun Beam Rifle Energy Cannon Beam Cannon Ballistic Gun Autogun Ballistic Cannon Assault Cannon Launcher Shock Bomb Launcher Special Weapon Remote Datajack Slashing Weapon Katana Special Melee Weapon Datajack Build | -11 -10 -9 -8 -8 -8 -7 -7 ------- Run | Scr Mat Mat Mat Sto Gar Fac Gar Slots Evolved 6 | . . 2 2 . . 2 . Power . | . . . . . . . . Propulsion 1 | . . 1 . . . . . Utility 4 | . . . 2 . . 2 . Weapon 1 | . . 1 . . . . . Parts Attached 95 | . 7 23 3 17 24 8 13 Power 10 | . 1 1 1 3 3 . 1 Engine 5 | . 1 1 1 2 . . . Core 5 | . . . . 1 3 . 1 Reactor . | . . . . . . . . Propulsion 24 | . 1 10 . 4 7 1 1 Treads . | . . . . . . . . Leg 19 | . . 7 . 3 7 1 1 Wheel 5 | . 1 3 . 1 . . . Hover . | . . . . . . . . Flight . | . . . . . . . . Utility 19 | . 3 . 2 1 3 4 6 Device 1 | . . . . . . 1 . Storage 5 | . 3 . 1 . . 1 . Processor 1 | . . . . . 1 . . Hackware 5 | . . . . . . . 5 Protection 7 | . . . 1 1 2 2 1 Artifact . | . . . . . . . . Weapon 42 | . 2 12 . 9 11 3 5 Energy Gun 5 | . . 1 . 1 2 1 . Energy Cannon 1 | . 1 . . . . . . Ballistic Gun 24 | . 1 11 . 4 5 1 2 Ballistic Cannon 2 | . . . . 1 . 1 . Launcher 5 | . . . . 2 2 . 1 Special Weapon 1 | . . . . . . . 1 Impact Weapon . | . . . . . . . . Slashing Weapon 3 | . . . . . 2 . 1 Piercing Weapon . | . . . . . . . . Special Melee Weapon 1 | . . . . 1 . . . Unidentified Prototypes 1 | . . . . 1 . . . Parts Lost 38 | . 4 2 . 5 14 1 12 Power 5 | . 1 . . 1 1 . 2 Propulsion 17 | . 1 1 . 3 7 1 4 Utility 4 | . . . . . 2 . 2 Weapon 12 | . 2 1 . 1 4 . 4 Highest Loss Streak 10 | . 2 1 . 3 8 1 10 Average Slot Usage (%) 94 | . 84 94 100 97 91 99 93 Engine 4 | . 12 11 9 5 . . . Core 4 | . . . . 3 8 7 5 Leg 19 | . 14 17 18 16 23 23 19 Wheel 5 | . 7 10 9 9 . . . Storage 25 | . 24 22 27 27 27 23 23 Processor 1 | . . . . . 2 7 4 Hackware 1 | . . . . . . . 14 Protection 5 | . . . 9 8 5 11 2 Energy Gun 4 | . 13 . . . 6 7 . Energy Cannon 1 | . 6 3 . . . . . Ballistic Gun 15 | . 5 28 27 20 9 9 8 Ballistic Cannon 2 | . . . . 5 2 3 2 Slashing Weapon 1 | . . . . . 4 1 2 Naked Turns . | . . . . . . . . Heaviest Build 92 | 11 39 48 59 64 64 92 90 Greatest Support 48 | 20 20 26 10 28 45 43 48 Greatest Overweight (x) 6 | . 3 4 5 6 6 2 2 Average Overweight (x) 2 | . 1 2 5 4 1 1 1 Largest Inventory Capacity 24 | 6 16 16 20 20 20 24 24 Average Capacity 19 | 6 12 16 19 20 20 22 24 Most Carried 24 | 6 10 16 20 20 20 24 24 Average Carried 17 | 6 6 14 18 18 18 21 23 Final Capacity 24 | 6 16 16 20 20 20 24 24 Final Carried 24 | 6 6 16 20 18 20 24 21 Class Distribution -------------------- 28% | Hauler-Tank 21% | Scavenger-Mutant 11% | Gunner 10% | Mutant 9% | Scavenger-Tank 6% | Bothacker-Mutant 6% | Hauler-Mutant 5% | Scavenger-Gunner Dominant Class ---------------- Mutant | -10/Materials Gunner | -9/Materials Hauler-Tank | -8/Materials Hauler-Tank | -8/Storage Scavenger-Mutant | -8/Garrison Scavenger-Tank | -7/Factory Bothacker-Mutant | -7/Garrison Resources | -11 -10 -9 -8 -8 -8 -7 -7 ----------- Run | Scr Mat Mat Mat Sto Gar Fac Gar Matter Collected 2510 | 200 50 366 180 810 574 136 194 Remotely . | . . . . . . . . Salvage Created 2839 | . 148 657 197 958 599 207 73 Parts 186 | . 4 54 14 55 39 11 9 Haulers Intercepted 2 | . . 2 . . . . . Recyclers Shooed . | . . . . . . . . Parts Field Recycled . | . . . . . . . . Retrieved Matter . | . . . . . . . . Parts Self-Destructed . | . . . . . . . . Prevented . | . . . . . . . . Kills | -11 -10 -9 -8 -8 -8 -7 -7 ------- Run | Scr Mat Mat Mat Sto Gar Fac Gar Combat Hostiles Destroyed 73 | . 4 18 6 20 19 3 3 Guns 47 | . 1 15 6 10 11 2 2 Cannons 15 | . 3 3 . 5 3 1 . AOE 10 | . . . . 4 5 . 1 Classes Destroyed 10 | . 3 2 1 3 . 1 . Hauler 2 | . . 2 . . . . . Recycler 4 | . 1 . . 2 . 1 . Operator 3 | . . . . 3 . . . Watcher 1 | . . . 1 . . . . Swarmer 36 | . 3 10 4 7 9 . 3 Grunt 20 | . 1 4 . 8 6 1 . Brawler 2 | . . . . 1 1 . . Duelist 2 | . . . . 1 1 . . Sentry 11 | . . 4 2 3 2 . . Programmer 2 | . . . . . . 2 . Best Kill Streak 7 | . 3 7 3 5 6 2 2 Combat Bots Only 6 | . 3 4 3 5 6 1 2 Max Kills in Single Turn 3 | . 1 2 1 2 3 1 1 Gunslinging 1 | . . 1 . . . . . Exploded 3 | . . . . 2 3 . 1 Melee . | . . . . . . . . Uniques/NPCs Destroyed . | . . . . . . . . Combat | -11 -10 -9 -8 -8 -8 -7 -7 -------- Run | Scr Mat Mat Mat Sto Gar Fac Gar Damage Taken 6001 | . 459 486 127 1029 1706 206 1988 Core 1164 | . 127 82 21 85 134 . 715 Absorbed by Shields . | . . . . . . . . Core Remaining (%) 71 | 100 49 79 . . 56 . . Volleys Fired 234 | . 31 46 9 62 48 10 28 Largest 3 | . 2 3 3 3 3 3 2 Hottest 134 | . 100 100 69 90 103 134 51 Shots Fired 540 | . 49 128 27 167 107 30 32 Gun 436 | . 42 116 27 123 84 25 19 Cannon 84 | . 7 12 . 39 21 5 . Launcher 8 | . . . . 5 2 . 1 Special 12 | . . . . . . . 12 Kinetic 427 | . 3 116 27 160 82 20 19 Thermal 93 | . 46 12 . 2 23 10 . Explosive . | . . . . . . . . Electromagnetic 8 | . . . . 5 2 . 1 Robot Hit Streak 11 | . 6 11 9 10 11 5 6 Robot Miss Streak 10 | . 2 4 1 10 4 5 3 Penetration Max . | . . . . . . . . Secondary Targets 6 | . . 2 1 1 2 . . Max Gunslinging Chain 1 | . . 1 1 1 1 . . Shots Hit Robots 295 | . 31 75 17 76 63 15 18 Core Hits 141 | . 10 32 10 37 34 8 10 Critical Hits 2 | . . . . 1 1 . . Critical Kills 1 | . . . . . 1 . . Critical Parts Destroyed 1 | . . . . 1 . . . Melee Attacks 4 | . . . . . 3 . 1 Impact . | . . . . . . . . Slashing 4 | . . . . . 3 . 1 Piercing . | . . . . . . . . Sneak Attacks . | . . . . . . . . Combat Hostiles . | . . . . . . . . Follow-up Attacks . | . . . . . . . . Damage Inflicted 4837 | . 390 812 241 1530 1236 363 265 Guns 3402 | . 321 654 241 927 790 251 218 Cannons 882 | . 68 158 . 371 187 98 . Explosions 538 | . . . . 232 259 . 47 Melee . | . . . . . . . . Ramming 15 | . 1 . . . . 14 . Kinetic 3344 | . 7 654 241 1298 714 212 218 Thermal 1052 | . 382 158 . . 375 137 . Explosive 40 | . . . . 40 . . . Electromagnetic 386 | . . . . 192 147 . 47 Impact . | . . . . . . . . Slashing . | . . . . . . . . Piercing . | . . . . . . . . Highest Corruption 1 | . . . . . 1 . . Average Corruption 1 | . . . . . 1 . . Corruption Purged . | . . . . . . . . Effects 4 | . . . . . 4 . . Energy Discharges 1 | . . . . . 1 . . Data Loss (minor) 1 | . . . . . 1 . . Weapon Failures 2 | . . . . . 2 . . Overload Shots . | . . . . . . . . Overflow Damage 28 | . . . . 8 20 . . Projectiles 8 | . . . . 8 . . . Explosions 20 | . . . . . 20 . . Melee . | . . . . . . . . Knockbacks 13 | . . . . 7 4 2 . Impact . | . . . . . . . . Kinetic 12 | . . . . 6 4 2 . Secondary 1 | . . . . 1 . . . Self-Inflicted Damage 176 | . . . . 76 90 . 10 Shots 9 | . . . . 4 4 . 1 Rammed 2 | . 1 . . . . . 1 Targets Rammed 4 | . 1 . . . . 2 1 Kicked 2 | . . . . . . 2 . Crushed . | . . . . . . . . Highest Temperature 372 | . 372 157 44 260 334 126 16 Average Temperature 85 | . 138 41 21 79 107 39 8 Received Heat Transfer 1341 | . 171 90 . 324 459 27 270 Effects 3 | . 3 . . . . . . Shutdowns 1 | . 1 . . . . . . Interference 1 | . 1 . . . . . . Short Circuit 1 | . 1 . . . . . . Siege Activations . | . . . . . . . . Robots Corrupted 2 | . . . . 2 . . . Combat Hostiles 1 | . . . . 1 . . . Parts Fried 3 | . . . . 3 . . . Impact Corruptions . | . . . . . . . . Robots Melted . | . . . . . . . . Combat Hostiles . | . . . . . . . . Parts Melted 8 | . 5 . . . 1 2 . Heat Transferred 2518 | . 1073 333 . . 816 296 . Parts Sabotaged . | . . . . . . . . Parts Stolen . | . . . . . . . . Parts Stripped . | . . . . . . . . Power Chain Reactions 2 | . . . . . 2 . . Missiles Intercepted . | . . . . . . . . Alert | -11 -10 -9 -8 -8 -8 -7 -7 ------- Run | Scr Mat Mat Mat Sto Gar Fac Gar Peak Influence 931 | . 160 383 352 594 931 573 394 Initial 488 | . . . 73 148 386 488 291 Average 407 | . 61 217 239 384 701 476 339 Maximum Alert Level 3 | . . 1 1 2 3 2 1 Low Security (%) 21 | 100 100 38 39 12 . . . Level 1 37 | . . 61 60 43 10 31 100 Level 2 25 | . . . . 43 31 68 . Level 3 15 | . . . . . 57 . . Level 4 . | . . . . . . . . Level 5 . | . . . . . . . . High Security . | . . . . . . . . Max Security . | . . . . . . . . Squads Dispatched 8 | . . 2 . 4 . 2 . Investigation . | . . . . . . . . Extermination 2 | . . . . . . 2 . Reinforcement 5 | . . 2 . 3 . . . Assault 1 | . . . . 1 . . . Garrison . | . . . . . . . . Intercept . | . . . . . . . . Construction Impeded . | . . . . . . . . Haulers Reinforced . | . . . . . . . . Stealth | -11 -10 -9 -8 -8 -8 -7 -7 --------- Run | Scr Mat Mat Mat Sto Gar Fac Gar Distress Signals 2 | . . 2 . . . . . Communications Jammed . | . . . . . . . . Distress Signals . | . . . . . . . . Times Spotted 140 | . 12 26 11 39 24 8 20 Peak Tracking Total 12 | . 4 6 3 7 7 4 12 Tactical Retreats 21 | . 4 1 1 10 3 1 1 Traps | -11 -10 -9 -8 -8 -8 -7 -7 ------- Run | Scr Mat Mat Mat Sto Gar Fac Gar Traps Triggered 16 | . 1 3 . 2 10 . . Indirectly . | . . . . . . . . Trap Hack Attempts 1 | . . . . 1 . . . Triggered . | . . . . . . . . Disarmed . | . . . . . . . . Reprogrammed 1 | . . . . 1 . . . Reused . | . . . . . . . . Traps Extracted . | . . . . . . . . Installed . | . . . . . . . . Triggered 2 | . . . . 2 . . . Machines | -11 -10 -9 -8 -8 -8 -7 -7 ---------- Run | Scr Mat Mat Mat Sto Gar Fac Gar Machines Disabled 12 | . 1 . 1 5 4 . 1 Max in Single Turn 1 | . 1 . 1 1 1 . 1 Garrison Relay 5 | . . . . . 4 . 1 Machines Sabotaged . | . . . . . . . . Garrisons Compromised . | . . . . . . . . Overloaded Fab Kills . | . . . . . . . . Fab Network Shutdowns . | . . . . . . . . Hacking | -11 -10 -9 -8 -8 -8 -7 -7 --------- Run | Scr Mat Mat Mat Sto Gar Fac Gar Machines Accessed 7 | . . 3 . 1 . 3 . Terminals 5 | . . 3 . . . 2 . Fabricators . | . . . . . . . . Repair Stations . | . . . . . . . . Recycling Units . | . . . . . . . . Scanalyzers . | . . . . . . . . Garrison Access 2 | . . . . 1 . 1 . Total Hacks 14 | . . 9 . 2 . 3 . Successful 6 | . . 3 . 1 . 2 . Failed 8 | . . 6 . 1 . 1 . Catastrophic 1 | . . . . . . 1 . Database Lockouts . | . . . . . . . . Manual 7 | . . 3 . 2 . 2 . Terminals 11 | . . 9 . . . 2 . Fabricators . | . . . . . . . . Repair Stations . | . . . . . . . . Recycling Units . | . . . . . . . . Scanalyzers . | . . . . . . . . Garrison Access 3 | . . . . 2 . 1 . Terminal Hacks 2 | . . 2 . . . . . Robot Analysis 1 | . . 1 . . . . . Prototype ID Bank 1 | . . 1 . . . . . Fabricator Hacks . | . . . . . . . . Repair Station Hacks . | . . . . . . . . Recycling Unit Hacks . | . . . . . . . . Scanalyzer . | . . . . . . . . Garrison Access Hacks 2 | . . . . 1 . 1 . Unlock Access 2 | . . . . 1 . 1 . Unauthorized Hacks 2 | . . 1 . . . 1 . Terminals 2 | . . 1 . . . 1 . Track 1 | . . 1 . . . . . Disrupt 1 | . . . . . . 1 . Fabricators . | . . . . . . . . Repair Stations . | . . . . . . . . Recycling Units . | . . . . . . . . Scanalyzers . | . . . . . . . . Garrison Access . | . . . . . . . . Data Cores Recovered . | . . . . . . . . Used . | . . . . . . . . Hacking Detections 7 | . . 3 . 2 . 2 . Full Trace Events . | . . . . . . . . Feedback Events . | . . . . . . . . Feedback Blocked . | . . . . . . . . Robot Schematics Acquired . | . . . . . . . . Robots Built . | . . . . . . . . Matter . | . . . . . . . . Time . | . . . . . . . . Total Robot Build Rating . | . . . . . . . . Part Schematics Acquired . | . . . . . . . . Parts Built . | . . . . . . . . Matter . | . . . . . . . . Time . | . . . . . . . . Total Part Build Rating . | . . . . . . . . Parts Repaired . | . . . . . . . . Time . | . . . . . . . . Parts Recycled . | . . . . . . . . Recycled Matter . | . . . . . . . . Retrieved Matter . | . . . . . . . . Retrieved Components . | . . . . . . . . Parts Scanalyzed . | . . . . . . . . Part Schematics Acquired . | . . . . . . . . Parts Damaged . | . . . . . . . . Bothacking | -11 -10 -9 -8 -8 -8 -7 -7 ------------ Run | Scr Mat Mat Mat Sto Gar Fac Gar Used RIF Installer 1 | . . . . . 1 . . Robots Hacked 5 | . . . . . . . 5 Non-combat . | . . . . . . . . Combat 5 | . . . . . . . 5 Robot Hacks Applied 6 | . . . . . . . 6 overload_power 1 | . . . . . . . 1 overwrite_iff 1 | . . . . . . . 1 streamctrl_high 2 | . . . . . . . 2 formatsys_high 2 | . . . . . . . 2 Relay Couplers Released 19 | . . . . . 15 . 4 Machine Destruction 19 | . . . . . 15 . 4 Attached 5 | . . . . . . . 5 Robots Rewired . | . . . . . . . . Allies Hacked . | . . . . . . . . Hacks Repelled . | . . . . . . . . Allies | -11 -10 -9 -8 -8 -8 -7 -7 -------- Run | Scr Mat Mat Mat Sto Gar Fac Gar Total Allies 4 | . . . . . . . 4 Largest Group 2 | . . . . . . . 2 Highest-Rated Group 48 | . . . . . . . 48 Highest-Rated Ally 32 | . . . . . . . 32 Total Orders . | . . . . . . . . Ally Attacks 17 | . . . . . . . 17 Total Damage 166 | . . . . . . . 166 Kills 2 | . . . . . . . 2 Allies Corrupted . | . . . . . . . . Allies Melted . | . . . . . . . . Intel | -11 -10 -9 -8 -8 -8 -7 -7 ------- Run | Scr Mat Mat Mat Sto Gar Fac Gar Robot Analysis Total 1 | . . 1 . . . . . Derelict Logs Recovered . | . . . . . . . . Drone Launches . | . . . . . . . . Drone Recoveries . | . . . . . . . . Exploration | -11 -10 -9 -8 -8 -8 -7 -7 ------------- Run | Scr Mat Mat Mat Sto Gar Fac Gar Turns Passed 4849 | 32 440 860 354 843 1325 637 358 Spaces Moved 2536 | 27 284 477 182 413 683 318 152 Core . | . . . . . . . . Treads . | . . . . . . . . Legs 1545 | 27 110 162 . 136 640 318 152 Wheels 991 | . 174 315 182 277 43 . . Hover . | . . . . . . . . Flight . | . . . . . . . . Fastest Speed 100 | 120 100 110 130 130 123 150 153 Average Speed 146 | 120 117 129 130 147 157 170 169 Slowest Speed 240 | 120 180 240 130 180 190 183 185 Overloaded Moves . | . . . . . . . . Propulsion Burnouts . | . . . . . . . . Robots Hopped . | . . . . . . . . Cave-ins Triggered . | . . . . . . . . Exploration Rate (%) 31 | 4 33 37 12 47 81 9 29 Regions Visited 7 Branch Regions 1 Pre-discovered Areas . | . . . . . . . . Known Exits Taken 2 | . . . . 1 . 1 . Unknown Exits Taken 4 | 1 1 1 1 . . . . Scrap Searched . | . . . . . . . . Spaces Dug . | . . . . . . . . Terrain Destroyed 35 | . . . . 27 7 1 . Melee . | . . . . . . . . Projectile 10 | . . . . 9 . 1 . AOE 25 | . . . . 18 7 . . Terrain Rammed . | . . . . . . . . Walls Destroyed . | . . . . . . . . Machines Disabled . | . . . . . . . . Actions | -11 -10 -9 -8 -8 -8 -7 -7 --------- Run | Scr Mat Mat Mat Sto Gar Fac Gar Total 3306 | 26 340 652 284 539 857 392 216 Wait 232 | . 8 57 85 31 8 32 11 Move 2528 | 26 283 476 181 412 681 317 152 Hop . | . . . . . . . . Pick Up 79 | . 4 24 5 6 24 13 3 Fast Attach 29 | . 4 11 1 5 4 2 2 Attach 27 | . 1 2 2 5 12 2 3 Detach 9 | . 1 1 1 2 2 . 2 Swap 39 | . 2 10 . 7 8 4 8 Drop 65 | . 5 24 . 8 14 10 4 Fire 234 | . 31 46 9 62 48 10 28 Melee 4 | . . . . . 3 . 1 Ram 2 | . 1 . . . . . 1 Kick 2 | . . . . . . 2 . Crush . | . . . . . . . . Escape Stasis 53 | . . . . . 53 . . Rewire 2 | . . 1 . . . . 1 Trap 1 | . . . . 1 . . . Miscellaneous . | . . . . . . . . Route ------- -11/Scrapyard -10/Materials (discovered 2 exits: *Mat / [*Min]) -9/Materials -8/Materials -8/Storage (discovered 2 exits: *Fac / Gar) -8/Garrison (discovered 3 exits: *Fac x3) -7/Factory -7/Garrison History --------- Turn | Location | Event 1 | -11/Scrapyard | Discovered new exit (range 2) 33 | -11/Scrapyard | Entered Materials 290 | -10/Materials | Core integrity fell below 50% 327 | -10/Materials | Build established: Mutant 331 | -10/Materials | Discovered new exit (range 11) 427 | -10/Materials | Discovered new exit (range 7) 473 | -10/Materials | Entered another Materials area 473 | -9/Materials | Evolved 2 slots: Propulsion x1, Weapon x1 1236 | -9/Materials | Build established: Gunner 1313 | -9/Materials | Discovered new exit (range 16) 1333 | -9/Materials | Entered another Materials area 1333 | -8/Materials | Evolved 2 slots: Utility x2 1502 | -8/Materials | Discovered new exit (range 5) 1635 | -8/Materials | Build established: Hauler-Tank 1687 | -8/Materials | Entered Storage 2273 | -8/Storage | Lost 3 parts (1p1n1w) 2483 | -8/Storage | Discovered new exit (range 8) 2487 | -8/Storage | First assault squad dispatched 2528 | -8/Storage | Identified exit to Garrison 2530 | -8/Storage | Entered Garrison 2537 | -8/Garrison | Installed Relay Interface Framework 2634 | -8/Garrison | Triggered checkpoint 2674 | -8/Garrison | Garrison Relay disabled 2754 | -8/Garrison | Triggered checkpoint 2808 | -8/Garrison | Lost 3 parts (1p1n1w) 2892 | -8/Garrison | Lost 8 parts (3n2u3w) 3026 | -8/Garrison | Discovered new exit (range 8) 3088 | -8/Garrison | Garrison Relay disabled 3106 | -8/Garrison | Triggered checkpoint 3196 | -8/Garrison | Build established: Scavenger-Mutant 3256 | -8/Garrison | Triggered checkpoint 3305 | -8/Garrison | Discovered new exit (range 10) 3360 | -8/Garrison | Triggered checkpoint 3387 | -8/Garrison | Garrison Relay disabled 3526 | -8/Garrison | Identified exit to Factory 3692 | -8/Garrison | Triggered checkpoint 3745 | -8/Garrison | Discovered exit to Factory (range 8) 3760 | -8/Garrison | Triggered checkpoint 3814 | -8/Garrison | Garrison Relay disabled 3855 | -8/Garrison | Entered Factory 3855 | -7/Factory | Evolved 2 slots: Utility x2 4273 | -7/Factory | Build established: Scavenger-Tank 4431 | -7/Factory | Identified exit to Garrison 4492 | -7/Factory | Entered Garrison 4596 | -7/Garrison | Triggered checkpoint 4642 | -7/Garrison | Garrison Relay disabled 4756 | -7/Garrison | Build established: Bothacker-Mutant 4837 | -7/Garrison | Core integrity fell below 50% 4847 | -7/Garrison | Core integrity fell below 20% 4850 | -7/Garrison | Destroyed by G-47 Trooper with Particle Gun Last Messages --------------- 04777_ Acquired Autogun. 04779_ Acquired 27 matter. 04790_ Dropped Hvy. Assault Rifle. 04793_ Discarded Relay Coupler [Swarmer]. 04795_ Acquired 69 matter. 04813_ Acquired 12 matter. Garrison Door activated. 04824_ Aluminum Leg destroyed. 04825_ Remote Datajack destroyed. 04828_ Acquired 9 matter. 04830_ S-27 Virus destroyed. 04831_ Shock Bomb Launcher destroyed. 04837_ Flak Gun destroyed. 04837_ Imp. Titanium Leg destroyed. 04838_ Lgt. Nuclear Core destroyed. 04839_ Relay Coupler [Grunt] destroyed. 04839_ Imp. Carbon-fiber Leg destroyed. 04840_ Slammed into S-27 Virus. 04840_ Relay Coupler [Sentry] destroyed. 04841_ Autogun destroyed. Map ----- +----------------------------------------------------+ | ?????????????????????????????????????????????????? | | ?????????????????????????????????????????????????? | | ?????????????????????????????????????????????????? | | ?????????????????????????????????????????????????? | | ?????????????????????????????????????????????????? | | ?????????????????????????????????????????????????? | | ?????????????????????????????????????????????????? | | ?????????????????????????????????????????????????? | | ?????????????????????????????????????????????????? | | ?????????????????????????????????????????????????? | | ?????????????????????????????????????????????????? | | ????????????????????""????####???????????????????? | | ?????????????????? ??? #???????????????????? | | ??????????????? ??? ??? ???????????????????? | | ?????????????? ?? ??? ???????????????????? | | ??????????????# ?# ??? #???????????????????? | | ??????????????# ## ?## ###?????????????????? | | ??????????????" ? #?????????????????? | | ???????????????? ? #?????????????????? | | ????????????????? ? #?????????????????? | | ?????????????????? ? s= ??????????????????? | | ??????????????# ???# ?# [%#???????????????????? | | ??????????????# ## ## s=#???????????????????? | | ??????????????# gs s #### ####???????????? | | ??????????????# ggs ; ????????????? | | ??????????????# @l #???????????????????? | | ???????????????# ## ## * #???????????????????? | | ???????????????????# ?#[ #???????????????????? | | ???????????????????####??# %=#???????????????????? | | ?????????????????????????#= *#???????????????????? | | ?????????????????????????#% =#???????????????????? | | ?????????????????????????#= ########????????????? | | ?????????????????????????# * #????????????? | | ?????????????????????????# = ###### #????????????? | | ?????????????????????????# #????# #????????????? | | ?????????????????????????#[=!####?# #????????????? | | ?????????????????????????#[ =# ### ############## | | ?????????????????????????# ! | | ?????????????????????????# | | ?????????????????????????# | | ?????????????????????????########## ############## | | ??????????????????????????????????# #????????????? | | ??????????????????????????????????# #????????????? | | ??????????????????????????????????# ######???????? | | ??????????????????????????????????# ## #???????? | | ??????????????????????????????????# ## % #######?? | | ??????????????????????????????????# = = #?? | | ??????????????????????????????????##########" #?? | | ???????????????????????????????????????????#" ### | | ???????????????????????????????????????????#!! + | +----------------------------------------------------+ Best States ------------- Heat Dissipation 48 Energy Generation 14 Energy Capacity 280 Matter Stores 300 Matter Capacity 300 Sight Range 16 Terrain Scan Density 10 Armor Coverage 375 Evasion (%) 40 Relay Coupler Types 67 Relay Coupler Value 3 Item Schematics ----------------- None Robot Schematics ------------------ None Fabricated ------------ Nothing Alien Tech Used ----------------- None Achievements -------------- None Challenges ------------ None Game ------ Seed HeartRecyclingPod Manual? 0 Play Time 00:54:59 Cumulative 119.5 hours Start 2021.03.27 @ 20:46:21 End 2021.04.02 @ 15:23:17 Sessions 4 Manual Loads 0 Difficulty Rogue Special Mode None Game No. 110 Rogue 110 Adventurer 0 Explorer 0 Win Type - Total 2 Types 2/0/0/0/0/0/0/0/0 Lore% 55 Gallery% 61 Achievement% 44 Wizard Run 0 Options --------- ASCII 0 Keyboard 1 Movement Numpad Keybinds 0 Fullscreen 1 Font 24/Smallcaps Map View 76x50 Tactical HUD 1 Map Filters NONE Filters BRIGHTNESS(125)|SATURATION(100) Steam 1 RUN: 0c2bae0f-6d60-4a02-bad6-3b9d50e48af7